[Event "Late-Titled-Tuesday-Blitz-March-12-2024"]
[Site "Chess.com"]
[Date "2024.03.12"]
[Round "9"]
[White "Lady_Nika"]
[Black "KaydenTroffChess"]
[Result "0-1"]
[WhiteElo "2593"]
[BlackElo "2823"]
[TimeControl "180+1"]
[EndTime "15:38:37 PDT"]
[Termination "KaydenTroffChess won by resignation"]

1. e4 {[%clk 0:03:00.9]} 1... c5 {[%clk 0:02:58.6]} 2. Nc3 {[%clk 0:03:01]} 2...
g6 {[%clk 0:02:58.1]} 3. g3 {[%clk 0:03:01.9]} 3... Bg7 {[%clk 0:02:57.9]} 4.
Bg2 {[%clk 0:03:02.8]} 4... Nc6 {[%clk 0:02:58]} 5. d3 {[%clk 0:03:03.3]} 5...
Rb8 {[%clk 0:02:54.3]} 6. f4 {[%clk 0:03:03.6]} 6... b5 {[%clk 0:02:54.3]} 7.
Nf3 {[%clk 0:03:03.9]} 7... b4 {[%clk 0:02:54.3]} 8. Ne2 {[%clk 0:03:04.1]} 8...
e6 {[%clk 0:02:51.6]} 9. O-O {[%clk 0:03:04.2]} 9... Nge7 {[%clk 0:02:52]} 10.
Rb1 {[%clk 0:03:04.5]} 10... O-O {[%clk 0:02:51.4]} 11. Be3 {[%clk 0:03:04.5]}
11... Qa5 {[%clk 0:02:50.4]} 12. Nc1 {[%clk 0:03:04.7]} 12... d6 {[%clk
0:02:45.8]} 13. g4 {[%clk 0:03:04.4]} 13... Ba6 {[%clk 0:02:43.9]} 14. g5 {[%clk
0:03:03.8]} 14... c4 {[%clk 0:02:41.5]} 15. b3 {[%clk 0:02:58.8]} 15... cxd3
{[%clk 0:02:39.4]} 16. cxd3 {[%clk 0:02:58.8]} 16... d5 {[%clk 0:02:39.9]} 17.
Nd2 {[%clk 0:02:51.2]} 17... dxe4 {[%clk 0:02:28.5]} 18. Nxe4 {[%clk 0:02:49.4]}
18... Nf5 {[%clk 0:02:27.4]} 19. Bc5 {[%clk 0:02:49.1]} 19... Rfd8 {[%clk
0:02:21.4]} 20. Qc2 {[%clk 0:02:45.8]} 20... Ncd4 {[%clk 0:02:21.1]} 21. Bxd4
{[%clk 0:02:43.9]} 21... Bxd4+ {[%clk 0:02:20.5]} 22. Kh1 {[%clk 0:02:43.7]}
22... Ne3 {[%clk 0:02:21.2]} 23. Qf2 {[%clk 0:02:37.5]} 23... Nxf1 {[%clk
0:02:13.5]} 24. Qxf1 {[%clk 0:02:37.5]} 24... Rbc8 {[%clk 0:02:12.2]} 25. Ne2
{[%clk 0:02:37.5]} 25... Bxd3 {[%clk 0:02:08.6]} 26. Qe1 {[%clk 0:02:33.8]}
26... Qxa2 {[%clk 0:01:47]} 27. Nxd4 {[%clk 0:02:28.4]} 27... Qxb1 {[%clk
0:01:44.9]} 28. Nf6+ {[%clk 0:02:27.9]} 28... Kg7 {[%clk 0:01:43.7]} 29. Qxb1
{[%clk 0:02:25.4]} 29... Bxb1 {[%clk 0:01:43.3]} 30. Ne2 {[%clk 0:02:20.4]}
30... Rd1+ {[%clk 0:01:42.5]} 31. Ng1 {[%clk 0:02:20.5]} 31... Rcc1 {[%clk
0:01:41.8]} 32. Ne8+ {[%clk 0:02:18.8]} 32... Kf8 {[%clk 0:01:41.5]} 0-1

[Event "Late-Titled-Tuesday-Blitz-March-12-2024"]
[Site "Chess.com"]
[Date "2024.03.12"]
[Round "9"]
[White "chess_blitz00"]
[Black "ncofre98"]
[Result "1-0"]
[WhiteElo "2479"]
[BlackElo "2605"]
[TimeControl "180+1"]
[EndTime "15:38:41 PDT"]
[Termination "chess_blitz00 won by resignation"]

1. d4 {[%clk 0:03:00.9]} 1... Nf6 {[%clk 0:02:58.4]} 2. Bf4 {[%clk 0:03:01.2]}
2... c5 {[%clk 0:02:59.3]} 3. c3 {[%clk 0:02:59]} 3... Qb6 {[%clk 0:02:57.7]} 4.
Qb3 {[%clk 0:02:57]} 4... Nc6 {[%clk 0:02:53.9]} 5. e3 {[%clk 0:02:55.3]} 5...
d5 {[%clk 0:02:27.5]} 6. Qxb6 {[%clk 0:02:44.3]} 6... axb6 {[%clk 0:02:28.4]} 7.
Bc7 {[%clk 0:02:43.3]} 7... cxd4 {[%clk 0:02:26.2]} 8. exd4 {[%clk 0:02:38.6]}
8... Nd7 {[%clk 0:02:25.2]} 9. Nf3 {[%clk 0:02:38.6]} 9... e6 {[%clk 0:02:25.2]}
10. Bb5 {[%clk 0:02:26.4]} 10... Be7 {[%clk 0:02:23.8]} 11. a4 {[%clk
0:02:20.6]} 11... Bd8 {[%clk 0:02:22.5]} 12. Bd6 {[%clk 0:02:13.4]} 12... f6
{[%clk 0:02:20.9]} 13. Na3 {[%clk 0:02:01.1]} 13... Kf7 {[%clk 0:02:19.3]} 14.
O-O-O {[%clk 0:01:57.2]} 14... Be7 {[%clk 0:02:15]} 15. Bxe7 {[%clk 0:01:55.6]}
15... Kxe7 {[%clk 0:02:15.9]} 16. Rhe1 {[%clk 0:01:53.7]} 16... Kd6 {[%clk
0:02:14.7]} 17. Kc2 {[%clk 0:01:49]} 17... Nf8 {[%clk 0:02:09.7]} 18. b3 {[%clk
0:01:48.8]} 18... Bd7 {[%clk 0:02:09]} 19. Bf1 {[%clk 0:01:34.4]} 19... Ng6
{[%clk 0:01:58.7]} 20. Nb5+ {[%clk 0:01:33.5]} 1-0

[Event "Late-Titled-Tuesday-Blitz-March-12-2024"]
[Site "Chess.com"]
[Date "2024.03.12"]
[Round "9"]
[White "FairChess_on_YouTube"]
[Black "BogdanDeac"]
[Result "1/2-1/2"]
[WhiteElo "3120"]
[BlackElo "3097"]
[TimeControl "180+1"]
[EndTime "15:39:32 PDT"]
[Termination "Game drawn by agreement"]

1. e4 {[%clk 0:03:00.9]} 1... e5 {[%clk 0:02:59.6]} 2. Nf3 {[%clk 0:03:01]} 2...
Nf6 {[%clk 0:02:59.9]} 3. Nc3 {[%clk 0:03:00.4]} 3... Nc6 {[%clk 0:02:59.8]} 4.
d4 {[%clk 0:03:00.6]} 4... exd4 {[%clk 0:03:00.2]} 5. Nxd4 {[%clk 0:03:01.5]}
5... Bb4 {[%clk 0:03:00.6]} 6. Nxc6 {[%clk 0:03:01.6]} 6... bxc6 {[%clk
0:03:01.2]} 7. Bd3 {[%clk 0:03:02]} 7... O-O {[%clk 0:03:01.8]} 8. O-O {[%clk
0:03:01.6]} 8... d5 {[%clk 0:03:02.5]} 9. Bd2 {[%clk 0:03:02.1]} 9... Bxc3
{[%clk 0:02:59.4]} 10. Bxc3 {[%clk 0:03:02.4]} 10... dxe4 {[%clk 0:03:00.1]} 11.
Bxf6 {[%clk 0:03:02]} 11... Qxf6 {[%clk 0:02:59.9]} 12. Bxe4 {[%clk 0:03:02.3]}
12... Qxb2 {[%clk 0:02:59.9]} 13. Bxc6 {[%clk 0:03:00.1]} 13... Rb8 {[%clk
0:03:00.2]} 14. Rb1 {[%clk 0:03:00.2]} 14... Qxb1 {[%clk 0:02:59.9]} 15. Qxb1
{[%clk 0:03:01.1]} 15... Rxb1 {[%clk 0:02:57.6]} 16. Rxb1 {[%clk 0:03:02]} 16...
Rd8 {[%clk 0:02:57.7]} 17. Bf3 {[%clk 0:02:55.3]} 17... Kf8 {[%clk 0:02:38]} 18.
Rb5 {[%clk 0:02:42.6]} 18... Be6 {[%clk 0:02:27.8]} 19. Rc5 {[%clk 0:02:26]}
19... Bxa2 {[%clk 0:02:08.7]} 20. Rxc7 {[%clk 0:02:25.5]} 20... a5 {[%clk
0:02:09.2]} 21. Ra7 {[%clk 0:02:18.2]} 21... Rc8 {[%clk 0:01:54.6]} 22. Be4
{[%clk 0:02:00]} 22... Rc5 {[%clk 0:01:33]} 23. f3 {[%clk 0:01:58.2]} 23... g6
{[%clk 0:01:20.5]} 24. Kf2 {[%clk 0:01:56.8]} 24... Bb1 {[%clk 0:01:17.2]} 25.
Kg3 {[%clk 0:01:47.4]} 25... Bxc2 {[%clk 0:01:15.9]} 26. Bxc2 {[%clk 0:01:46.9]}
26... Rxc2 {[%clk 0:01:16.6]} 27. Rxa5 {[%clk 0:01:47.2]} 27... Kg7 {[%clk
0:01:17]} 28. h4 {[%clk 0:01:46.2]} 28... h5 {[%clk 0:01:17]} 29. Ra4 {[%clk
0:01:45.7]} 29... Rc5 {[%clk 0:01:16.8]} 30. Rb4 {[%clk 0:01:45.5]} 30... Ra5
{[%clk 0:01:16.7]} 31. Rc4 {[%clk 0:01:45.8]} 31... Rb5 {[%clk 0:01:15.9]}
1/2-1/2

[Event "Late-Titled-Tuesday-Blitz-March-12-2024"]
[Site "Chess.com"]
[Date "2024.03.12"]
[Round "9"]
[White "betta2004"]
[Black "Lennis93"]
[Result "0-1"]
[WhiteElo "2572"]
[BlackElo "2713"]
[TimeControl "180+1"]
[EndTime "15:39:33 PDT"]
[Termination "Lennis93 won by resignation"]

1. e4 {[%clk 0:03:00]} 1... e6 {[%clk 0:02:48.7]} 2. d4 {[%clk 0:02:58.2]} 2...
d5 {[%clk 0:02:49.4]} 3. Bd3 {[%clk 0:02:58.7]} 3... dxe4 {[%clk 0:02:46.4]} 4.
Bxe4 {[%clk 0:02:59.6]} 4... Nf6 {[%clk 0:02:46.8]} 5. Bf3 {[%clk 0:02:57.8]}
5... c5 {[%clk 0:02:47.1]} 6. Ne2 {[%clk 0:02:56.9]} 6... Be7 {[%clk 0:02:46.8]}
7. Be3 {[%clk 0:02:57.4]} 7... cxd4 {[%clk 0:02:43.4]} 8. Qxd4 {[%clk
0:02:55.6]} 8... Qc7 {[%clk 0:02:41.8]} 9. Nbc3 {[%clk 0:02:54.7]} 9... a6
{[%clk 0:02:40.2]} 10. O-O {[%clk 0:02:53.4]} 10... O-O {[%clk 0:02:38.2]} 11.
Bf4 {[%clk 0:02:51.1]} 11... Qa5 {[%clk 0:02:34.3]} 12. a3 {[%clk 0:02:39.1]}
12... Nc6 {[%clk 0:02:32.8]} 13. Qe3 {[%clk 0:02:38]} 13... Bd7 {[%clk
0:02:29.2]} 14. b4 {[%clk 0:02:36]} 14... Qf5 {[%clk 0:02:24.5]} 15. Ng3 {[%clk
0:02:30.9]} 15... Qxc2 {[%clk 0:02:23.3]} 16. Rac1 {[%clk 0:02:30.3]} 16... Qb3
{[%clk 0:02:11.2]} 17. Rfd1 {[%clk 0:02:28.2]} 17... Rfd8 {[%clk 0:02:02.2]} 18.
Nd5 {[%clk 0:02:21.1]} 18... Qxe3 {[%clk 0:01:59.1]} 19. Nxe7+ {[%clk
0:02:20.8]} 19... Nxe7 {[%clk 0:01:58.8]} 20. Bxe3 {[%clk 0:02:20.6]} 20... Bc6
{[%clk 0:01:59.2]} 21. Bb6 {[%clk 0:02:18.2]} 21... Rxd1+ {[%clk 0:01:57.1]} 22.
Rxd1 {[%clk 0:02:19.1]} 22... Bxf3 {[%clk 0:01:56.7]} 23. gxf3 {[%clk 0:02:18]}
23... Ned5 {[%clk 0:01:56.9]} 24. Bd4 {[%clk 0:02:17.3]} 24... Rc8 {[%clk
0:01:56.4]} 25. Ne4 {[%clk 0:02:17.3]} 25... Rc2 {[%clk 0:01:52.2]} 26. Be5
{[%clk 0:02:07.2]} 26... b6 {[%clk 0:01:48.4]} 27. Nc3 {[%clk 0:01:57.6]} 27...
h6 {[%clk 0:01:45]} 28. Na4 {[%clk 0:01:57.2]} 28... Nh5 {[%clk 0:01:41.2]} 29.
Bd4 {[%clk 0:01:55.3]} 29... Nhf4 {[%clk 0:01:36.1]} 30. Bxb6 {[%clk 0:01:54.9]}
30... Ra2 {[%clk 0:01:27.5]} 31. Bd4 {[%clk 0:01:43.2]} 31... Rxa3 {[%clk
0:01:27.3]} 32. Be5 {[%clk 0:01:41.8]} 32... Rxa4 {[%clk 0:01:26.6]} 0-1

[Event "Late-Titled-Tuesday-Blitz-March-12-2024"]
[Site "Chess.com"]
[Date "2024.03.12"]
[Round "9"]
[White "Englishman_18"]
[Black "PapaieDudu"]
[Result "0-1"]
[WhiteElo "2265"]
[BlackElo "2417"]
[TimeControl "180+1"]
[EndTime "15:39:34 PDT"]
[Termination "PapaieDudu won by resignation"]

1. Nf3 {[%clk 0:02:51.1]} 1... d5 {[%clk 0:03:00.3]} 2. d4 {[%clk 0:02:42.9]}
2... Nf6 {[%clk 0:03:00.6]} 3. c4 {[%clk 0:02:42.2]} 3... e6 {[%clk 0:03:01.5]}
4. g3 {[%clk 0:02:41.2]} 4... dxc4 {[%clk 0:03:00.9]} 5. Qa4+ {[%clk 0:02:38.3]}
5... Nbd7 {[%clk 0:03:00]} 6. Qxc4 {[%clk 0:02:38.2]} 6... a6 {[%clk 0:03:00.6]}
7. Bd2 {[%clk 0:02:27.6]} 7... b5 {[%clk 0:03:01]} 8. Qc2 {[%clk 0:02:26.1]}
8... Bb7 {[%clk 0:03:01]} 9. Bg2 {[%clk 0:02:22.4]} 9... c5 {[%clk 0:03:01.6]}
10. dxc5 {[%clk 0:02:06.1]} 10... Bxc5 {[%clk 0:03:02.5]} 11. b4 {[%clk
0:02:05.5]} 11... Bb6 {[%clk 0:02:54.4]} 12. O-O {[%clk 0:02:04.8]} 12... Rc8
{[%clk 0:02:55.1]} 13. Qb2 {[%clk 0:02:01.9]} 13... O-O {[%clk 0:02:55.3]} 14.
Rd1 {[%clk 0:01:57.8]} 14... Qe7 {[%clk 0:02:55.7]} 15. Nc3 {[%clk 0:01:52.3]}
15... e5 {[%clk 0:02:56.2]} 16. e4 {[%clk 0:01:49.5]} 16... Nxe4 {[%clk
0:02:44.8]} 17. Nxe4 {[%clk 0:01:42.9]} 17... Bxe4 {[%clk 0:02:44.5]} 18. Nxe5
{[%clk 0:01:29]} 18... Rc2 {[%clk 0:02:42.3]} 19. Qb3 {[%clk 0:01:13.2]} 19...
Qxe5 {[%clk 0:02:39.5]} 20. Bxe4 {[%clk 0:00:58.1]} 20... Rxd2 {[%clk
0:02:38.1]} 21. Rf1 {[%clk 0:00:04.1]} 21... Bxf2+ {[%clk 0:02:37.1]} 0-1

[Event "Late-Titled-Tuesday-Blitz-March-12-2024"]
[Site "Chess.com"]
[Date "2024.03.12"]
[Round "9"]
[White "egnfanclub"]
[Black "FMYiLiu"]
[Result "1-0"]
[WhiteElo "2394"]
[BlackElo "2475"]
[TimeControl "180+1"]
[EndTime "15:39:38 PDT"]
[Termination "egnfanclub won by resignation"]

1. e4 {[%clk 0:03:00.2]} 1... e6 {[%clk 0:02:56.6]} 2. d4 {[%clk 0:02:59.8]}
2... d5 {[%clk 0:02:57.1]} 3. Nc3 {[%clk 0:02:58.9]} 3... Nf6 {[%clk 0:02:57.3]}
4. e5 {[%clk 0:02:58.5]} 4... Nfd7 {[%clk 0:02:57.5]} 5. Nf3 {[%clk 0:02:58]}
5... c5 {[%clk 0:02:58.2]} 6. dxc5 {[%clk 0:02:57.9]} 6... Nc6 {[%clk
0:02:58.1]} 7. Bf4 {[%clk 0:02:56.5]} 7... Bxc5 {[%clk 0:02:58]} 8. Bd3 {[%clk
0:02:56.3]} 8... Be7 {[%clk 0:02:58.5]} 9. h4 {[%clk 0:02:55.2]} 9... a6 {[%clk
0:02:47.7]} 10. a4 {[%clk 0:02:54.1]} 10... Nc5 {[%clk 0:02:47.7]} 11. h5 {[%clk
0:02:52.7]} 11... h6 {[%clk 0:02:46.1]} 12. Qd2 {[%clk 0:02:47.6]} 12... Qb6
{[%clk 0:02:41.1]} 13. O-O {[%clk 0:02:39.7]} 13... Bd7 {[%clk 0:02:34.5]} 14.
Ne2 {[%clk 0:02:24.3]} 14... Nxd3 {[%clk 0:02:16]} 15. cxd3 {[%clk 0:02:17.9]}
15... d4 {[%clk 0:02:06.9]} 16. Ng3 {[%clk 0:02:11.5]} 16... Bb4 {[%clk
0:02:02.5]} 17. Qe2 {[%clk 0:02:11.4]} 17... Ne7 {[%clk 0:01:57]} 18. Ne4 {[%clk
0:01:48.1]} 18... Nd5 {[%clk 0:01:53]} 19. Bd2 {[%clk 0:01:45.3]} 19... O-O
{[%clk 0:01:50.8]} 20. Bxb4 {[%clk 0:01:30.6]} 20... Nxb4 {[%clk 0:01:46.7]} 21.
Qd2 {[%clk 0:01:23.2]} 21... a5 {[%clk 0:01:40.3]} 22. Nf6+ {[%clk 0:01:21]}
22... gxf6 {[%clk 0:01:38.4]} 23. Qxh6 {[%clk 0:01:20.6]} 1-0

[Event "Late-Titled-Tuesday-Blitz-March-12-2024"]
[Site "Chess.com"]
[Date "2024.03.12"]
[Round "9"]
[White "mac0504"]
[Black "ChainedDowntohell"]
[Result "1-0"]
[WhiteElo "2709"]
[BlackElo "2537"]
[TimeControl "180+1"]
[EndTime "15:40:05 PDT"]
[Termination "mac0504 won on time"]

1. c4 {[%clk 0:02:55]} 1... c6 {[%clk 0:02:56.5]} 2. Nc3 {[%clk 0:02:55.2]} 2...
d5 {[%clk 0:02:56.3]} 3. e3 {[%clk 0:02:56]} 3... Nf6 {[%clk 0:02:54.7]} 4. b3
{[%clk 0:02:56.6]} 4... Bf5 {[%clk 0:02:54]} 5. Bb2 {[%clk 0:02:57]} 5... e6
{[%clk 0:02:54.2]} 6. h3 {[%clk 0:02:57]} 6... h6 {[%clk 0:02:52.4]} 7. g4
{[%clk 0:02:57.7]} 7... Bg6 {[%clk 0:02:51.3]} 8. Bg2 {[%clk 0:02:58.5]} 8...
Bd6 {[%clk 0:02:49.1]} 9. Nge2 {[%clk 0:02:59]} 9... Nbd7 {[%clk 0:02:43.5]} 10.
d4 {[%clk 0:02:58.6]} 10... Qe7 {[%clk 0:02:26.5]} 11. O-O {[%clk 0:02:57.4]}
11... Ne4 {[%clk 0:02:09.8]} 12. Nf4 {[%clk 0:02:55.5]} 12... Bh7 {[%clk
0:01:47.8]} 13. Nxe4 {[%clk 0:02:50.5]} 13... Bxe4 {[%clk 0:01:47.1]} 14. Bxe4
{[%clk 0:02:50.6]} 14... dxe4 {[%clk 0:01:48]} 15. Qc2 {[%clk 0:02:49.2]} 15...
Nf6 {[%clk 0:01:38.7]} 16. Ne2 {[%clk 0:02:27.9]} 16... h5 {[%clk 0:01:09.9]}
17. g5 {[%clk 0:02:23.8]} 17... Nh7 {[%clk 0:01:02.9]} 18. Qxe4 {[%clk 0:02:15]}
18... Nxg5 {[%clk 0:00:57.6]} 19. Qg2 {[%clk 0:02:15.7]} 19... f5 {[%clk
0:00:52.1]} 20. Kh1 {[%clk 0:02:11.6]} 20... Kf8 {[%clk 0:00:20.4]} 21. Rg1
{[%clk 0:02:10.9]} 21... Ne4 {[%clk 0:00:19]} 22. f3 {[%clk 0:02:10.7]} 22...
Nf6 {[%clk 0:00:15]} 23. e4 {[%clk 0:02:11.2]} 23... Bc7 {[%clk 0:00:12.6]} 24.
e5 {[%clk 0:02:10.7]} 24... Ng8 {[%clk 0:00:02.2]} 25. Ba3 {[%clk 0:02:09.2]}
1-0

[Event "Late-Titled-Tuesday-Blitz-March-12-2024"]
[Site "Chess.com"]
[Date "2024.03.12"]
[Round "9"]
[White "Boorchess"]
[Black "IMSlavin"]
[Result "0-1"]
[WhiteElo "2551"]
[BlackElo "2330"]
[TimeControl "180+1"]
[EndTime "15:40:21 PDT"]
[Termination "IMSlavin won by resignation"]

1. d4 {[%clk 0:03:00.9]} 1... Nc6 {[%clk 0:02:59.7]} 2. Nf3 {[%clk 0:02:59.9]}
2... d6 {[%clk 0:02:59.7]} 3. d5 {[%clk 0:02:58.3]} 3... Ne5 {[%clk 0:02:59.4]}
4. Nxe5 {[%clk 0:02:58.4]} 4... dxe5 {[%clk 0:02:59.9]} 5. e4 {[%clk 0:02:58.4]}
5... a6 {[%clk 0:03:00]} 6. Qh5 {[%clk 0:02:47.1]} 6... Qd6 {[%clk 0:02:55.3]}
7. Nc3 {[%clk 0:02:44.8]} 7... g6 {[%clk 0:02:54.1]} 8. Qh4 {[%clk 0:02:39.3]}
8... Bg7 {[%clk 0:02:51]} 9. Bc4 {[%clk 0:02:35.7]} 9... Bd7 {[%clk 0:02:47.2]}
10. O-O {[%clk 0:02:32.5]} 10... h5 {[%clk 0:02:40.5]} 11. f4 {[%clk 0:02:28.9]}
11... Qc5+ {[%clk 0:02:34]} 12. Kh1 {[%clk 0:02:28.1]} 12... Qxc4 {[%clk
0:02:34.4]} 13. Bd2 {[%clk 0:02:15.4]} 13... exf4 {[%clk 0:02:30.3]} 14. Bxf4
{[%clk 0:02:13.3]} 14... Nf6 {[%clk 0:02:27.7]} 15. e5 {[%clk 0:02:01.8]} 15...
Nxd5 {[%clk 0:02:19.8]} 16. Nxd5 {[%clk 0:01:59.7]} 16... Qxd5 {[%clk
0:02:19.4]} 17. Bg5 {[%clk 0:01:54.7]} 17... Bc6 {[%clk 0:02:15.3]} 18. Rf2
{[%clk 0:01:50.9]} 18... Qxe5 {[%clk 0:01:56.6]} 19. Bd2 {[%clk 0:01:37.4]}
19... O-O {[%clk 0:01:47.3]} 20. Re1 {[%clk 0:01:31.6]} 20... Qxb2 {[%clk
0:01:40.3]} 21. Rxe7 {[%clk 0:01:27.2]} 21... Rae8 {[%clk 0:01:37]} 22. h3
{[%clk 0:01:05.3]} 22... Rxe7 {[%clk 0:01:28.4]} 23. Qxe7 {[%clk 0:01:04.2]}
23... Qxc2 {[%clk 0:01:20.6]} 24. Kh2 {[%clk 0:00:56.4]} 24... Qe4 {[%clk
0:01:13]} 25. Qg5 {[%clk 0:00:51.8]} 25... Qe5+ {[%clk 0:01:11.7]} 0-1

[Event "Late-Titled-Tuesday-Blitz-March-12-2024"]
[Site "Chess.com"]
[Date "2024.03.12"]
[Round "9"]
[White "Igor_Lysyj"]
[Black "Vadim_Galchenko"]
[Result "0-1"]
[WhiteElo "2798"]
[BlackElo "2615"]
[TimeControl "180+1"]
[EndTime "15:40:30 PDT"]
[Termination "Vadim_Galchenko won by resignation"]

1. d4 {[%clk 0:02:56.6]} 1... d5 {[%clk 0:03:00]} 2. c4 {[%clk 0:02:56.6]} 2...
Nc6 {[%clk 0:03:00.7]} 3. Nf3 {[%clk 0:02:50.8]} 3... Bg4 {[%clk 0:03:00.3]} 4.
Bg5 {[%clk 0:02:50.8]} 4... h6 {[%clk 0:02:56.7]} 5. Bh4 {[%clk 0:02:50.8]} 5...
Qd7 {[%clk 0:02:53.7]} 6. Nc3 {[%clk 0:02:47.9]} 6... e6 {[%clk 0:02:53]} 7. e3
{[%clk 0:02:46.3]} 7... Bb4 {[%clk 0:02:49.8]} 8. Qb3 {[%clk 0:02:36.9]} 8...
Nge7 {[%clk 0:02:45.3]} 9. Bxe7 {[%clk 0:02:31.2]} 9... Qxe7 {[%clk 0:02:45.8]}
10. cxd5 {[%clk 0:02:30.6]} 10... exd5 {[%clk 0:02:45.1]} 11. Qxd5 {[%clk
0:02:29.5]} 11... Rd8 {[%clk 0:02:38.8]} 12. Qb5 {[%clk 0:02:26.5]} 12... O-O
{[%clk 0:02:34.8]} 13. Be2 {[%clk 0:02:24.5]} 13... Bxf3 {[%clk 0:02:18.9]} 14.
gxf3 {[%clk 0:02:23.5]} 14... Rfe8 {[%clk 0:02:12.9]} 15. Rd1 {[%clk 0:01:54.1]}
15... Qh4 {[%clk 0:02:03]} 16. a3 {[%clk 0:01:45]} 16... Bxc3+ {[%clk
0:02:00.1]} 17. bxc3 {[%clk 0:01:44.4]} 17... Rxe3 {[%clk 0:02:00.2]} 18. O-O
{[%clk 0:01:09.1]} 18... Re6 {[%clk 0:01:53.1]} 19. Kh1 {[%clk 0:01:09]} 19...
Ne7 {[%clk 0:01:41]} 20. Bd3 {[%clk 0:01:02.1]} 20... Qh3 {[%clk 0:01:26]} 21.
Be4 {[%clk 0:00:46.3]} 21... Rxe4 {[%clk 0:01:14.4]} 22. fxe4 {[%clk 0:00:45.8]}
22... Qf3+ {[%clk 0:01:14.7]} 23. Kg1 {[%clk 0:00:46.3]} 23... Rd6 {[%clk
0:01:14.6]} 0-1

[Event "Late-Titled-Tuesday-Blitz-March-12-2024"]
[Site "Chess.com"]
[Date "2024.03.12"]
[Round "9"]
[White "ArturoCaceres"]
[Black "publicaccountcze"]
[Result "0-1"]
[WhiteElo "2429"]
[BlackElo "2226"]
[TimeControl "180+1"]
[EndTime "15:40:34 PDT"]
[Termination "publicaccountcze won by resignation"]

1. d4 {[%clk 0:02:59.9]} 1... Nf6 {[%clk 0:02:59.2]} 2. c4 {[%clk 0:03:00.8]}
2... g6 {[%clk 0:02:59.3]} 3. Nf3 {[%clk 0:03:01.7]} 3... Bg7 {[%clk 0:02:58.5]}
4. g3 {[%clk 0:03:02.6]} 4... O-O {[%clk 0:02:57.6]} 5. Bg2 {[%clk 0:03:03.5]}
5... d6 {[%clk 0:02:54.1]} 6. O-O {[%clk 0:03:04.4]} 6... Nbd7 {[%clk
0:02:52.4]} 7. Nc3 {[%clk 0:03:05.1]} 7... e5 {[%clk 0:02:51.9]} 8. dxe5 {[%clk
0:03:05.6]} 8... dxe5 {[%clk 0:02:48.2]} 9. b3 {[%clk 0:03:06.5]} 9... c6 {[%clk
0:02:42.3]} 10. Ba3 {[%clk 0:03:05.7]} 10... Re8 {[%clk 0:02:42.2]} 11. Qd2
{[%clk 0:03:06]} 11... Qa5 {[%clk 0:02:32.6]} 12. Bb2 {[%clk 0:03:01.7]} 12...
Qc7 {[%clk 0:02:05.5]} 13. a3 {[%clk 0:02:59.8]} 13... a5 {[%clk 0:02:03.9]} 14.
b4 {[%clk 0:02:59.4]} 14... Nb6 {[%clk 0:01:48.8]} 15. c5 {[%clk 0:02:53.4]}
15... Nc4 {[%clk 0:01:48]} 16. Qc2 {[%clk 0:02:53.9]} 16... Nxb2 {[%clk
0:01:48.6]} 17. Qxb2 {[%clk 0:02:54.8]} 17... e4 {[%clk 0:01:49.3]} 18. Nd4
{[%clk 0:02:53.3]} 18... e3 {[%clk 0:01:47.9]} 19. fxe3 {[%clk 0:02:51.4]} 19...
Ng4 {[%clk 0:01:47.4]} 20. Ne4 {[%clk 0:02:46]} 20... Qe5 {[%clk 0:01:33.8]} 21.
Rxf7 {[%clk 0:02:19.5]} 21... Kxf7 {[%clk 0:01:20.3]} 22. Qb3+ {[%clk
0:02:19.3]} 22... Be6 {[%clk 0:01:16.8]} 23. Rf1+ {[%clk 0:02:13.6]} 23... Kg8
{[%clk 0:01:16]} 24. Nxe6 {[%clk 0:02:07.1]} 24... Qxe6 {[%clk 0:01:15.7]} 25.
Qd3 {[%clk 0:02:02.4]} 25... Rad8 {[%clk 0:01:14.2]} 26. Qb1 {[%clk 0:01:58.9]}
26... Nxe3 {[%clk 0:01:11.9]} 27. Nd6 {[%clk 0:01:58.1]} 27... Nxf1 {[%clk
0:01:07.9]} 28. Bxf1 {[%clk 0:01:56.9]} 28... Rxd6 {[%clk 0:01:04.6]} 29. cxd6
{[%clk 0:01:56]} 29... Qxd6 {[%clk 0:01:04.8]} 30. bxa5 {[%clk 0:01:56.9]} 30...
Rf8 {[%clk 0:01:00.3]} 31. Qb3+ {[%clk 0:01:57.8]} 31... Kh8 {[%clk 0:00:59.5]}
32. e3 {[%clk 0:01:57.8]} 32... Qf6 {[%clk 0:00:56.5]} 33. Bc4 {[%clk
0:01:52.5]} 33... Qf2+ {[%clk 0:00:42.2]} 34. Kh1 {[%clk 0:01:52.6]} 34... Rd8
{[%clk 0:00:41.1]} 35. a4 {[%clk 0:01:45.2]} 35... Rd2 {[%clk 0:00:38.5]} 36.
Be2 {[%clk 0:01:45.5]} 36... Rxe2 {[%clk 0:00:35.8]} 37. Qg8+ {[%clk 0:01:45.2]}
37... Kxg8 {[%clk 0:00:35]} 38. a6 {[%clk 0:01:46.1]} 38... bxa6 {[%clk
0:00:34]} 0-1

[Event "Late-Titled-Tuesday-Blitz-March-12-2024"]
[Site "Chess.com"]
[Date "2024.03.12"]
[Round "9"]
[White "Thjop"]
[Black "ploxoi"]
[Result "1-0"]
[WhiteElo "2652"]
[BlackElo "2414"]
[TimeControl "180+1"]
[EndTime "15:40:43 PDT"]
[Termination "Thjop won by checkmate"]

1. e4 {[%clk 0:01:09.8]} 1... c6 {[%clk 0:02:58.8]} 2. d4 {[%clk 0:01:08.6]}
2... d5 {[%clk 0:02:58.1]} 3. e5 {[%clk 0:01:09.1]} 3... c5 {[%clk 0:02:58.5]}
4. dxc5 {[%clk 0:01:10]} 4... Nc6 {[%clk 0:02:58.3]} 5. a3 {[%clk 0:01:10.9]}
5... Nxe5 {[%clk 0:02:55.7]} 6. b4 {[%clk 0:01:10.9]} 6... e6 {[%clk 0:02:54.6]}
7. Bb2 {[%clk 0:01:11]} 7... Nc6 {[%clk 0:02:53.7]} 8. Nf3 {[%clk 0:01:11.4]}
8... a5 {[%clk 0:02:53.5]} 9. Bb5 {[%clk 0:01:07.7]} 9... Bd7 {[%clk 0:02:50.9]}
10. Bxc6 {[%clk 0:01:06]} 10... Bxc6 {[%clk 0:02:51.8]} 11. O-O {[%clk
0:01:06.3]} 11... Nf6 {[%clk 0:02:50.1]} 12. Ne5 {[%clk 0:01:06.1]} 12... Qc7
{[%clk 0:02:49.4]} 13. Nd2 {[%clk 0:01:06]} 13... Be7 {[%clk 0:02:48]} 14. Nb3
{[%clk 0:01:04]} 14... axb4 {[%clk 0:02:45.8]} 15. axb4 {[%clk 0:01:04.9]} 15...
O-O {[%clk 0:02:45.8]} 16. Re1 {[%clk 0:00:59.6]} 16... b6 {[%clk 0:02:43.9]}
17. Nd4 {[%clk 0:00:49.3]} 17... Rxa1 {[%clk 0:02:32.1]} 18. Qxa1 {[%clk
0:00:49]} 18... Ba8 {[%clk 0:02:32.6]} 19. Nb5 {[%clk 0:00:41.1]} 19... Qb7
{[%clk 0:02:30.3]} 20. c6 {[%clk 0:00:32.1]} 20... Qc8 {[%clk 0:02:29.2]} 21. c3
{[%clk 0:00:14.7]} 21... Ne4 {[%clk 0:02:26.1]} 22. f3 {[%clk 0:00:11.8]} 22...
Nd6 {[%clk 0:02:25.1]} 23. Nd4 {[%clk 0:00:10.9]} 23... Nc4 {[%clk 0:02:19.5]}
24. Nxc4 {[%clk 0:00:10.7]} 24... dxc4 {[%clk 0:02:20.4]} 25. b5 {[%clk
0:00:11.4]} 25... Bc5 {[%clk 0:02:19.9]} 26. Qa4 {[%clk 0:00:11.6]} 26... Re8
{[%clk 0:02:10.8]} 27. Kf1 {[%clk 0:00:11]} 27... e5 {[%clk 0:02:07.6]} 28. Ne2
{[%clk 0:00:10.9]} 28... Qf5 {[%clk 0:02:05.5]} 29. Qxc4 {[%clk 0:00:10.2]}
29... Qh5 {[%clk 0:02:04.5]} 30. h3 {[%clk 0:00:10]} 30... e4 {[%clk 0:02:02.5]}
31. Ng3 {[%clk 0:00:09.7]} 31... Qh4 {[%clk 0:01:58.9]} 32. Rxe4 {[%clk
0:00:10]} 32... Qxg3 {[%clk 0:01:57.7]} 33. Rxe8+ {[%clk 0:00:09.4]} 33... Bf8
{[%clk 0:01:57.8]} 34. Qb4 {[%clk 0:00:08.4]} 34... Qb8 {[%clk 0:01:46.7]} 35.
Qxf8# {[%clk 0:00:08.3]} 1-0